{"text_format":"1","workbook":"xlsx","n_sheets":3,"sheets":["Feed sieve instructions","Enter your data","Recommandations"],"not_rendered":{"charts":1,"images":8,"macros":1,"external_links":0,"defined_names":3,"comments":0,"pivot_tables":0},"unopened":[],"bounds":{"document_bytes":16777216,"sheet_cells":100000,"rows_first":2000,"rows_last":500,"rows_between":2000,"halvings":0,"cell_chars":16384,"cell_head_chars":4096},"cells_cut":0,"cells_raw":0,"read":"whole","date_system":"1900"}

{"sheet":"Feed sieve instructions","index":0,"n_rows":12,"n_cols":2,"rows_kept":12,"cut":false,"hidden":false,"merged":[[11,1,12,16],[5,1,5,7],[0,1,0,16],[1,1,1,16],[2,1,2,16],[3,1,3,16],[5,9,5,12]]}
[null,"Feed sieve instructions"]
[null,"1- Remove the sieve lid and insert the upright lid into the slot in the middle of the >3mm compartment.\n2- Sample the feed correctly and fill the left compartment with feed."]
[null,"3-Remove the lid and close the sieve by repositioning the lid in the slot.\n4-Position the HUBBARD sieve upright (compartment > 3mm at the top) and shake for 60 seconds alternating from left to right and up and down."]
[null,"6-Read the results and note the quantity of feed in each compartment using the graduated scale located to the left of each compartment.\n7-Enter the results in the Data tab \"Enter your data\" of this Excel file.\n8-Remove the lid and empty the feed from the sieve. Clean the sieves with a brush.\n9-To have a good analysis of the feed sample, repeat the procedure for the same feed at least 5 times."]
[]
[]
[]
[]
[]
[]
[]
[null,"www.hubbardbreeders.com"]

{"sheet":"Enter your data","index":1,"n_rows":46,"n_cols":16,"rows_kept":46,"cut":false,"hidden":false,"merged":[[0,4,2,15],[3,5,3,7],[3,8,3,15],[21,4,41,15],[12,4,13,4],[11,4,11,15],[48,4,1048575,15],[4,8,10,15],[42,4,42,15],[43,4,44,15],[45,4,45,15],[12,10,20,10],[12,11,12,15],[12,5,12,9],[4,5,4,7],[6,5,6,7],[7,5,7,7],[9,5,9,7],[10,5,10,7],[8,5,8,7],[5,5,5,7]]}
[null,null,null,null,"   Physical Quality Record Sheet for Parent Stock"]
[]
[]
[null,null,null,null,"Company","Hubbard",null,null,"How to use this file?"]
[null,null,null,null,"Date","2025-01-01",null,null,"1-Enter values in the green cells:\nIt is important to fill in the feed type and the feed presentation in order to have a proper comparison with the Hubbard recommendations.\n\n2-Interpretation / Legend: \nResults in line with Hubbard recommendations\nResults NOT in line with Hubbard recommendations"]
[null,null,null,null,"Product","PS EFFICIENCY PLUS"]
[null,null,null,null,"Farm name","Cocorico"]
[null,null,null,null,"House N°",1]
[null,null,null,null,"Feed Mill","Feed  Plus"]
[null,null,null,null,"Feed type","Breeder I"]
[null,null,null,null,"Feed presentation","Mash"]
[]
[null,null,null,null,null,"Enter the values read on the feed sieve",null,null,null,null,null,"% of the sample"]
[null,null,null,null,null,">3mm","2-3mm","1-2mm","<1mm","Total",null,">3mm","2-3mm","1-2mm","<1mm","Total"]
[null,null,null,null,"Sub Sample 1",10,45,35,10,{"$f":"IF(OR(F15=\"\",G15=\"\",H15=\"\",I15=\"\"),\"\",SUM(F15:I15))","v":100},null,{"$f":"IF(J15=\"\",\"\",F15/$J15)","v":0.1},{"$f":"IF(J15=\"\",\"\",G15/$J15)","v":0.45},{"$f":"IF(J15=\"\",\"\",H15/$J15)","v":0.35},{"$f":"IF(J15=\"\",\"\",I15/$J15)","v":0.1},{"$f":"IF(J15=\"\",\"\",J15/$J15)","v":1}]
[null,null,null,null,"Sub Sample 2",12.5,42.5,32.5,15,{"$f":"IF(OR(F16=\"\",G16=\"\",H16=\"\",I16=\"\"),\"\",SUM(F16:I16))","v":102.5},null,{"$f":"IF(J16=\"\",\"\",F16/$J16)","v":0.12195121951219512},{"$f":"IF(J16=\"\",\"\",G16/$J16)","v":0.41463414634146339},{"$f":"IF(J16=\"\",\"\",H16/$J16)","v":0.31707317073170732},{"$f":"IF(J16=\"\",\"\",I16/$J16)","v":0.14634146341463414},{"$f":"IF(J16=\"\",\"\",J16/$J16)","v":1}]
[null,null,null,null,"Sub Sample 3",15,40,30,15,100,null,{"$f":"IF(J17=\"\",\"\",F17/$J17)","v":0.15},0.4,0.3,0.15,1]
[null,null,null,null,"Sub Sample 4",17.5,37.5,27.5,12.5,95,null,0.18421052631578946,{"$f":"IF(J18=\"\",\"\",G18/$J18)","v":0.39473684210526316},0.28947368421052633,0.13157894736842105,1]
[null,null,null,null,"Sub Sample 5",20,35,25,15,{"$f":"IF(OR(F19=\"\",G19=\"\",H19=\"\",I19=\"\"),\"\",SUM(F19:I19))","v":95},null,{"$f":"IF(J19=\"\",\"\",F19/$J19)","v":0.21052631578947367},{"$f":"IF(J19=\"\",\"\",G19/$J19)","v":0.36842105263157893},0.26315789473684209,0.15789473684210525,1]
[null,null,null,null,"Average",{"$f":"IF($F$15>0.001,AVERAGE(F15:F19),\"\")","v":15},{"$f":"IF($F$15>0.001,AVERAGE(G15:G19),\"\")","v":40},{"$f":"IF($F$15>0.001,AVERAGE(H15:H19),\"\")","v":30},{"$f":"IF($F$15>0.001,AVERAGE(I15:I19),\"\")","v":13.5},{"$f":"IF($F$15>0.001,AVERAGE(J15:J19),\"\")","v":98.5},null,{"$f":"IF($F$15>0.001,AVERAGE(L15:L19),\"\")","v":0.15333761232349166},{"$f":"IF($F$15>0.001,AVERAGE(M15:M19),\"\")","v":0.40555840821566108},{"$f":"IF($F$15>0.001,AVERAGE(N15:N19),\"\")","v":0.30394094993581511},{"$f":"IF($F$15>0.001,AVERAGE(O15:O19),\"\")","v":0.13716302952503207},{"$f":"IF($F$15>0.001,AVERAGE(P15:P19),\"\")","v":1}]
[null,null,null,null,"Hubbard recommendation",{"$f":"IF(L21=\"\",\"\",L21*100)","v":15},{"$f":"IF(M21=\"\",\"\",M21*100)","v":40},{"$f":"IF(N21=\"\",\"\",N21*100)","v":30},{"$f":"IF(O21=\"\",\"\",O21*100)","v":15},{"$f":"IF(P21=\"\",\"\",P21*100)","v":100},null,{"$f":"IF(VLOOKUP($F$11&$F$10&$L$14,Recommandations!A2:E97,5)=\"N/A\",\"\",VLOOKUP($F$11&$F$10&$L$14,Recommandations!A2:E97,5))","v":0.15},{"$f":"IF(VLOOKUP($F$11&$F$10&$M$14,Recommandations!$A$2:$E$97,5)=\"N/A\",\"\",VLOOKUP($F$11&$F$10&$M$14,Recommandations!$A$2:$E$97,5))","v":0.4},{"$f":"IF(VLOOKUP($F$11&$F$10&$N$14,Recommandations!$A$2:$E$97,5)=\"N/A\",\"\",VLOOKUP($F$11&$F$10&$N$14,Recommandations!$A$2:$E$97,5))","v":0.3},{"$f":"IF(VLOOKUP($F$11&$F$10&$O$14,Recommandations!$A$2:$E$97,5)=\"N/A\",\"\",VLOOKUP($F$11&$F$10&$O$14,Recommandations!$A$2:$E$97,5))","v":0.15},{"$f":"IF(SUM(L21:O21)=0,\"\",SUM(L21:O21))","v":1}]
[]
[]
[]
[]
[]
[]
[]
[]
[]
[]
[]
[]
[]
[]
[]
[]
[]
[]
[]
[]
[]
[null,null,null,null," Please consult your local Hubbard Technical Manager for more speciﬁc details."]
[null,null,null,null,"www.hubbardbreeders.com"]
[]
[null,null,null,null,"The performance data contained in this document was obtained from results and experience from our own research flocks and flocks of our customers. In no way does the data contained in this document constitute a warranty or guarantee of the same performance under different conditions of nutrition, density or physical or biological environment. In particular (but without limitation of foregoing) we do not grant any warranties regarding the fitness for purpose, performance, use, nature or quality of the flocks, nor any warranty regarding compliance with local legislation regarding health, welfare, or other aspects of animal production. Hubbard makes no representation as to the accuracy or completeness of the information contained in this document."]

{"sheet":"Recommandations","index":2,"n_rows":97,"n_cols":10,"rows_kept":97,"cut":false,"hidden":true,"merged":[]}
["ID","Form","Particle size","Feed type","Recommandation","Quality of feed presentation"]
[{"$f":"B2&D2&C2","v":"CrumbBreeder I<1mm"},"Crumb","<1mm","Breeder I",0.1,"Good",null,"Crumb","Pre-Starter","PS Female EFFICIENCY PLUS"]
["CrumbBreeder I>3mm","Crumb",">3mm","Breeder I",0.5,"Good",null,"Mash","Starter","PS Premium Female (JA57; JA57Ki; JA87; REDBRO; Redbro Mini; P6N)  "]
["CrumbBreeder I1-2mm","Crumb","1-2mm","Breeder I",0.1,"Good",null,"Pellet","Grower","PS Males (M77/M99)"]
["CrumbBreeder I2-3mm","Crumb","2-3mm","Breeder I",0.3,"Good",null,null,"Transition","PS Males (Intermediate growth males, slow growth males)"]
["CrumbBreeder II<1mm","Crumb","<1mm","Breeder II",0.1,"Good",null,null,"Onset of lay"]
["CrumbBreeder II>3mm","Crumb",">3mm","Breeder II",0.5,"Good",null,null,"Breeder I"]
["CrumbBreeder II1-2mm","Crumb","1-2mm","Breeder II",0.1,"Good",null,null,"Breeder II"]
["CrumbBreeder II2-3mm","Crumb","2-3mm","Breeder II",0.3,"Good",null,null,"Breeder III"]
["CrumbBreeder III<1mm","Crumb","<1mm","Breeder III",0.1,"Good"]
["CrumbBreeder III>3mm","Crumb",">3mm","Breeder III",0.5,"Good"]
["CrumbBreeder III1-2mm","Crumb","1-2mm","Breeder III",0.1,"Good"]
["CrumbBreeder III2-3mm","Crumb","2-3mm","Breeder III",0.3,"Good"]
["CrumbGrower<1mm","Crumb","<1mm","Grower",0.1,"Good"]
["CrumbGrower>3mm","Crumb",">3mm","Grower",0.5,"Good"]
["CrumbGrower1-2mm","Crumb","1-2mm","Grower",0.1,"Good"]
["CrumbGrower2-3mm","Crumb","2-3mm","Grower",0.3,"Good"]
["CrumbOnset of lay<1mm","Crumb","<1mm","Onset of lay",0.1,"Good"]
["CrumbOnset of lay>3mm","Crumb",">3mm","Onset of lay",0.5,"Good"]
["CrumbOnset of lay1-2mm","Crumb","1-2mm","Onset of lay",0.1,"Good"]
["CrumbOnset of lay2-3mm","Crumb","2-3mm","Onset of lay",0.3,"Good"]
["CrumbPre-Starter<1mm","Crumb","<1mm","Pre-Starter",0.05,"Good"]
["CrumbPre-Starter>3mm","Crumb",">3mm","Pre-Starter",0,"Good"]
["CrumbPre-Starter1-2mm","Crumb","1-2mm","Pre-Starter",0.55000000000000004,"Good"]
["CrumbPre-Starter2-3mm","Crumb","2-3mm","Pre-Starter",0.4,"Good"]
["CrumbStarter<1mm","Crumb","<1mm","Starter",0.05,"Good"]
["CrumbStarter>3mm","Crumb",">3mm","Starter",0,"Good"]
["CrumbStarter1-2mm","Crumb","1-2mm","Starter",0.55000000000000004,"Good"]
["CrumbStarter2-3mm","Crumb","2-3mm","Starter",0.4,"Good"]
["CrumbTransition<1mm","Crumb","<1mm","Transition",0.1,"Good"]
["CrumbTransition>3mm","Crumb",">3mm","Transition",0.5,"Good"]
["CrumbTransition1-2mm","Crumb","1-2mm","Transition",0.1,"Good"]
["CrumbTransition2-3mm","Crumb","2-3mm","Transition",0.3,"Good"]
[{"$f":"B34&D34&C34","v":"MashBreeder I<1mm"},"Mash","<1mm","Breeder I",0.15,"Good"]
["MashBreeder I>3mm","Mash",">3mm","Breeder I",0.15,"Good"]
["MashBreeder I1-2mm","Mash","1-2mm","Breeder I",0.3,"Good"]
["MashBreeder I2-3mm","Mash","2-3mm","Breeder I",0.4,"Good"]
["MashBreeder II<1mm","Mash","<1mm","Breeder II",0.15,"Good"]
["MashBreeder II>3mm","Mash",">3mm","Breeder II",0.15,"Good"]
["MashBreeder II1-2mm","Mash","1-2mm","Breeder II",0.3,"Good"]
["MashBreeder II2-3mm","Mash","2-3mm","Breeder II",0.4,"Good"]
["MashBreeder III<1mm","Mash","<1mm","Breeder III",0.15,"Good"]
["MashBreeder III>3mm","Mash",">3mm","Breeder III",0.15,"Good"]
["MashBreeder III1-2mm","Mash","1-2mm","Breeder III",0.3,"Good"]
["MashBreeder III2-3mm","Mash","2-3mm","Breeder III",0.4,"Good"]
["MashGrower<1mm","Mash","<1mm","Grower",0.2,"Good"]
["MashGrower>3mm","Mash",">3mm","Grower",0.1,"Good"]
["MashGrower1-2mm","Mash","1-2mm","Grower",0.35,"Good"]
["MashGrower2-3mm","Mash","2-3mm","Grower",0.35,"Good"]
["MashOnset of lay<1mm","Mash","<1mm","Onset of lay",0.15,"Good"]
["MashOnset of lay>3mm","Mash",">3mm","Onset of lay",0.15,"Good"]
["MashOnset of lay1-2mm","Mash","1-2mm","Onset of lay",0.3,"Good"]
["MashOnset of lay2-3mm","Mash","2-3mm","Onset of lay",0.4,"Good"]
["MashPre-Starter<1mm","Mash","<1mm","Pre-Starter",0.2,"Good"]
["MashPre-Starter>3mm","Mash",">3mm","Pre-Starter",0.05,"Good"]
["MashPre-Starter1-2mm","Mash","1-2mm","Pre-Starter",0.5,"Good"]
["MashPre-Starter2-3mm","Mash","2-3mm","Pre-Starter",0.25,"Good"]
["MashStarter<1mm","Mash","<1mm","Starter",0.2,"Good"]
["MashStarter>3mm","Mash",">3mm","Starter",0.05,"Good"]
["MashStarter1-2mm","Mash","1-2mm","Starter",0.5,"Good"]
["MashStarter2-3mm","Mash","2-3mm","Starter",0.25,"Good"]
["MashTransition<1mm","Mash","<1mm","Transition",0.2,"Good"]
["MashTransition>3mm","Mash",">3mm","Transition",0.1,"Good"]
["MashTransition1-2mm","Mash","1-2mm","Transition",0.35,"Good"]
["MashTransition2-3mm","Mash","2-3mm","Transition",0.35,"Good"]
[{"$f":"B66&D66&C66","v":"PelletBreeder I<1mm"},"Pellet","<1mm","Breeder I",0.1,"Good"]
["PelletBreeder I>3mm","Pellet",">3mm","Breeder I",0.7,"Good"]
["PelletBreeder I1-2mm","Pellet","1-2mm","Breeder I",0.1,"Good"]
["PelletBreeder I2-3mm","Pellet","2-3mm","Breeder I",0.1,"Good"]
["PelletBreeder II<1mm","Pellet","<1mm","Breeder II",0.1,"Good"]
["PelletBreeder II>3mm","Pellet",">3mm","Breeder II",0.7,"Good"]
["PelletBreeder II1-2mm","Pellet","1-2mm","Breeder II",0.1,"Good"]
["PelletBreeder II2-3mm","Pellet","2-3mm","Breeder II",0.1,"Good"]
["PelletBreeder III<1mm","Pellet","<1mm","Breeder III",0.1,"Good"]
["PelletBreeder III>3mm","Pellet",">3mm","Breeder III",0.7,"Good"]
["PelletBreeder III1-2mm","Pellet","1-2mm","Breeder III",0.1,"Good"]
["PelletBreeder III2-3mm","Pellet","2-3mm","Breeder III",0.1,"Good"]
["PelletGrower<1mm","Pellet","<1mm","Grower",0.1,"Good"]
["PelletGrower>3mm","Pellet",">3mm","Grower",0.7,"Good"]
["PelletGrower1-2mm","Pellet","1-2mm","Grower",0.1,"Good"]
["PelletGrower2-3mm","Pellet","2-3mm","Grower",0.1,"Good"]
["PelletOnset of lay<1mm","Pellet","<1mm","Onset of lay",0.1,"Good"]
["PelletOnset of lay>3mm","Pellet",">3mm","Onset of lay",0.7,"Good"]
["PelletOnset of lay1-2mm","Pellet","1-2mm","Onset of lay",0.1,"Good"]
["PelletOnset of lay2-3mm","Pellet","2-3mm","Onset of lay",0.1,"Good"]
["PelletPre-Starter<1mm","Pellet","<1mm","Pre-Starter","N/A","Good"]
["PelletPre-Starter>3mm","Pellet",">3mm","Pre-Starter","N/A","Good"]
["PelletPre-Starter1-2mm","Pellet","1-2mm","Pre-Starter","N/A","Good"]
["PelletPre-Starter2-3mm","Pellet","2-3mm","Pre-Starter","N/A","Good"]
["PelletStarter<1mm","Pellet","<1mm","Starter","N/A","Good"]
["PelletStarter>3mm","Pellet",">3mm","Starter","N/A","Good"]
["PelletStarter1-2mm","Pellet","1-2mm","Starter","N/A","Good"]
["PelletStarter2-3mm","Pellet","2-3mm","Starter","N/A","Good"]
["PelletTransition<1mm","Pellet","<1mm","Transition",0.1,"Good"]
["PelletTransition>3mm","Pellet",">3mm","Transition",0.7,"Good"]
["PelletTransition1-2mm","Pellet","1-2mm","Transition",0.1,"Good"]
["PelletTransition2-3mm","Pellet","2-3mm","Transition",0.1,"Good"]